bitfinex/quotes_ETHUSD_20250414
["timestamp","ask_amount","ask_price","bid_price","bid_amount"]
[1744629425673,3.0,1685.8,1685.5,11.86555]
[1744629425997,5.932,1685.8,1685.5,5.93294]
[1744629426158,5.93078,1686.2,1685.6,0.593294]
[1744629426361,5.93078,1686.2,1685.8,11.86347]
[1744629426682,11.86134,1686.2,1685.8,5.93158]
[1744629426888,5.93107,1686.1,1685.8,5.93158]
[1744629427076,5.93102,1686.1,1685.8,5.93158]
[1744629427406,5.93056,1686.2,1685.8,11.86335]
[1744629427604,14.0483,1686.3,1685.9,5.93151]
[1744629427902,7.356,1686.3,1686.0,11.86238]
[1744629428089,5.92921,1686.6,1686.2,5.93025]
[1744629428294,14.0978,1686.7,1686.3,11.85997]
[1744629428491,14.0978,1686.7,1686.2,0.8197]
[1744629428492,8.169,1686.7,1686.2,0.8197]
[1744629428683,8.169,1686.7,1686.4,5.92957]
[1744629428880,5.92925,1686.6,1686.2,0.8197]
[1744629429200,5.92925,1686.6,1685.9,5.9314]
[1744629429201,5.93025,1686.3,1685.9,5.9314]
[1744629429564,5.92984,1686.4,1685.9,5.9314]
[1744629429565,5.92985,1686.4,1685.9,5.93154]
[1744629429769,11.85993,1686.4,1686.0,11.86213]
[1744629430003,5.93041,1686.3,1685.9,5.93147]
[1744629430181,5.93041,1686.3,1685.9,5.93138]
[1744629430381,13.045823,1686.4,1686.0,5.93104]
[1744629430571,7.115963,1686.4,1685.8,2.05304558]
[1744629430772,3.0,1686.6,1685.9,5.93154]
[1744629430998,3.0,1686.6,1686.4,5.92964]
[1744629431198,11.85663,1686.9,1686.5,11.85864]
[1744629431406,11.85651,1686.9,1686.6,5.929]
[1744629431568,5.92906,1686.7,1686.3,5.93011]
[1744629431784,1.185663,1686.9,1686.3,5.93011]
[1744629431988,5.9292,1686.6,1686.3,5.93011]
[1744629432185,5.9285,1686.8,1686.2,0.7793]
[1744629432386,5.92938,1686.6,1686.2,6.70965]
[1744629432707,6.69563,1686.6,1686.3,5.93013]
[1744629433201,6.69563,1686.6,1686.1,5.93072]
[1744629433202,5.92985,1686.4,1686.1,5.93072]
[1744629433402,11.85932,1686.5,1686.1,11.8614]
[1744629433598,5.92992,1686.4,1686.1,5.93068]
[1744629433816,5.92992,1686.4,1686.0,12.68586]
[1744629434822,0.669594,1686.5,1686.0,0.8237]
[1744629435022,5.93006,1686.4,1685.8,8.1216]
[1744629435231,14.85932,1686.5,1686.1,11.8613]
[1744629435432,5.9298,1686.4,1686.1,5.93057]
[1744629435783,5.9298,1686.4,1686.1,11.86127]
[1744629436033,5.9298,1686.4,1686.0,5.93113]
[1744629436333,11.86057,1686.3,1686.0,5.9311]
[1744629436531,5.93026,1686.3,1686.0,5.9311]
[1744629437136,5.93026,1686.3,1685.9,5.93146]
[1744629437339,6.6417063,1686.3,1686.0,5.93105]
[1744629437628,5.93084,1686.1,1685.8,6.6974]
[1744629437828,5.93084,1686.1,1685.8,12.62916]
[1744629438426,5.93084,1686.1,1685.7,5.9322]
[1744629438596,5.93084,1686.1,1685.5,10.356]
[1744629438597,5.93175,1685.9,1685.5,5.93284]
[1744629438936,0.7622,1686.4,1685.9,5.93154]
[1744629439098,5.93026,1686.3,1686.0,5.93119]
[1744629439429,5.93026,1686.3,1685.7,6.70395]
[1744629439430,5.93084,1686.1,1685.8,5.93179]
[1744629439588,5.93084,1686.1,1685.7,6.70387]
[1744629439589,5.93119,1686.0,1685.7,11.86425]
[1744629439792,11.86199,1686.1,1685.7,11.86426]
[1744629440101,8.93049,1686.2,1685.6,5.93252]
[1744629440324,8.93049,1686.2,1685.3,7.356]
[1744629440325,5.93223,1685.8,1685.4,5.93324]
[1744629440516,0.7883,1686.0,1685.4,5.93324]
[1744629440517,11.86469,1685.7,1685.4,5.93317]
[1744629440693,5.93227,1685.7,1685.4,5.93317]
[1744629440895,3.55,1685.9,1685.2,5.93388]
[1744629441096,5.93309,1685.5,1685.2,5.93388]
[1744629441427,5.93309,1685.5,1685.1,5.99734112]
[1744629441632,5.93341,1685.4,1685.1,5.99734112]
[1744629441855,5.93385,1685.3,1685.1,0.05633112]
[1744629442345,8.93337,1685.4,1685.1,5.99049112]
[1744629442499,5.93367,1685.3,1685.1,0.05633112]
[1744629442699,5.93337,1685.4,1685.1,0.05633112]
[1744629443033,5.93343,1685.4,1685.1,0.05633112]
[1744629443336,0.593343,1685.4,1685.1,0.05633112]
[1744629443514,5.93367,1685.3,1685.1,0.05633112]
[1744629443716,5.93333,1685.4,1685.1,0.05633112]
[1744629443917,5.93303,1685.5,1685.1,5.99039112]
[1744629444118,10.17515408,1685.6,1685.2,5.93382]
[1744629444441,17.86045949,1685.6,1685.2,5.93398]
[1744629444650,5.99505949,1685.6,1685.1,0.05633112]
[1744629444809,5.93391,1685.3,1685.1,0.05633112]
[1744629445138,11.86778,1685.3,1685.1,0.05633112]
[1744629445706,5.93401,1685.2,1685.1,0.05633112]
[1744629445905,7.09759839,1685.2,1685.1,0.05633112]
[1744629446106,7.87079839,1685.2,1685.1,0.05633112]
[1744629447562,18.22379839,1685.2,1685.1,0.05633112]
[1744629447773,5.93695,1684.4,1684.1,0.05]
[1744629448061,0.8009,1684.3,1684.1,5.98785]
[1744629448367,5.93753,1684.2,1684.1,0.05]
[1744629448661,3.55,1684.4,1684.1,0.05]
[1744629448823,5.93753,1684.2,1684.1,0.05]
[1744629449457,5.9374,1684.3,1684.1,0.05]
[1744629449657,5.93753,1684.2,1684.1,0.05]
[1744629449857,6.71213,1684.2,1684.1,0.05]
[1744629450259,9.71213,1684.2,1684.1,0.05]
[1744629450760,7.903,1684.5,1684.1,0.05]
[1744629450761,5.93654,1684.5,1684.1,0.05]
[1744629450961,7.354,1684.7,1684.2,5.93753]
[1744629451171,7.20017059,1684.9,1684.6,5.93597]
[1744629451172,0.8302,1684.9,1684.6,5.93597]
[1744629451373,14.10598,1685.1,1684.5,0.776]
[1744629451553,5.935,1685.0,1684.6,5.9361]
[1744629451749,5.935,1685.0,1684.6,5.93597]
[1744629452064,5.93472,1685.0,1684.5,0.776]
[1744629452268,14.10602,1685.1,1684.7,5.93549]
[1744629452468,15.85853541,1685.1,1684.7,5.93549]
[1744629452847,9.92411541,1685.1,1684.5,0.776]
[1744629453096,8.1716,1685.1,1684.5,6.7124]
[1744629453274,5.93509,1684.9,1684.6,5.93601]
[1744629453487,20.04052,1685.1,1684.7,5.93556]
[1744629453847,20.04052,1685.1,1684.7,11.87116]
[1744629454354,22.044572,1685.1,1684.7,11.87116]
[1744629454558,5.93478,1685.0,1684.7,5.93556]
[1744629454948,5.93472,1685.0,1684.7,5.93558]
[1744629455167,7.356,1685.2,1684.9,5.9348]
[1744629455486,7.356,1685.2,1684.7,5.93577]
[1744629455487,5.93418,1685.2,1684.7,5.93577]
[1744629455688,5.93446,1685.1,1684.7,5.93574]
[1744629455889,5.93484,1685.0,1684.7,5.93574]
[1744629456268,5.93484,1685.0,1684.6,6.73785]
[1744629456269,11.8698,1685.0,1684.6,6.73785]
[1744629456457,3.0,1685.1,1684.4,5.93677]
[1744629456658,6.70512,1684.8,1684.4,5.93667]
[1744629456878,6.70512,1684.8,1684.5,5.93632]
[1744629457081,5.9361,1684.7,1684.2,5.93718]
[1744629457282,5.9361,1684.7,1684.4,5.93666]
[1744629457283,5.93598,1684.7,1684.4,5.93666]
[1744629457524,19.99665,1684.8,1684.4,5.93666]
[1744629457682,9.531704,1684.8,1684.1,0.05]
[1744629457883,9.531704,1684.8,1684.2,5.9373]
[1744629457884,5.93633,1684.6,1684.2,5.9373]
[1744629458120,9.531704,1684.8,1684.1,0.05]
[1744629458327,5.93651,1684.5,1684.2,5.93731]
[1744629458531,5.93705,1684.4,1684.1,0.05]
[1744629458822,5.93623,1684.6,1684.2,5.93724]
[1744629459120,5.93623,1684.6,1684.3,5.93701]
[1744629459481,8.1256,1684.8,1684.2,0.05937006]
[1744629459708,8.1256,1684.8,1684.5,5.93636]
[1744629459709,7.356,1684.8,1684.5,5.93636]
[1744629459909,7.356,1684.8,1684.5,5.93635]
[1744629460218,12.32345226,1685.0,1684.5,0.7972]
[1744629460421,15.35754749,1685.0,1684.6,5.93579]
[1744629460646,7.0007,1685.4,1684.7,5.93577]
[1744629460831,19.22156,1685.6,1685.2,5.93387]
[1744629460986,13.28877,1685.6,1685.2,11.86776]
[1744629461491,13.28877,1685.6,1685.2,5.93387]
[1744629461700,5.93343,1685.4,1685.0,5.93458]
[1744629461926,13.28872,1685.6,1685.2,5.93376]
[1744629462105,7.356,1685.6,1685.3,5.93348]
[1744629462330,7.356,1685.6,1685.5,5.93295]
[1744629462484,58.37567,1685.9,1685.5,5.93295]
[1744629462485,5.93193,1685.8,1685.5,5.93295]
[1744629463424,46.274,1685.9,1685.3,0.775]
[1744629463590,8.1495,1686.0,1685.7,5.93209]
[1744629463995,20.01233,1686.0,1685.6,5.93253]
[1744629464192,11.86336,1685.9,1685.5,5.93294]
[1744629464433,14.08073,1686.0,1685.5,5.93278]
[1744629464636,5.93171,1685.9,1685.6,5.93247]
[1744629465136,11.86427,1685.8,1685.4,5.93317]
[1744629465302,11.86427,1685.8,1685.4,11.8663]
[1744629465635,7.932844,1685.9,1685.5,11.86577]
[1744629465925,7.932844,1685.9,1685.5,5.93284]
[1744629466091,5.93211,1685.8,1685.4,11.86656]
[1744629466430,5.93211,1685.8,1685.5,5.93294]
[1744629466636,7.932834,1685.9,1685.5,5.93294]
[1744629466938,5.93204,1685.8,1685.5,5.93294]
[1744629467092,5.93159,1685.9,1685.6,5.9326]
[1744629467732,11.86334,1685.9,1685.5,5.93283]
[1744629467917,11.86334,1685.9,1685.5,5.93281]
[1744629468105,11.86334,1685.9,1685.5,11.86561]
[1744629468323,11.86334,1685.9,1685.4,5.9332]
[1744629468324,11.86493,1685.7,1685.4,5.9332]
[1744629468537,5.93244,1685.7,1685.4,5.9332]
[1744629468844,11.86489,1685.7,1685.4,5.9332]
[1744629469042,5.93244,1685.7,1685.3,11.86705]
[1744629469248,11.86488,1685.7,1685.3,11.86705]
[1744629469402,13.1700014,1685.7,1685.3,11.86705]
[1744629469604,5.93264,1685.6,1685.3,5.93352]
[1744629469842,14.86336,1685.9,1685.5,5.93278]
[1744629470038,5.93193,1685.8,1685.5,5.93278]
[1744629470405,11.86407,1685.8,1685.4,11.86646]
[1744629470611,5.93255,1685.7,1685.3,5.93354]
[1744629471304,7.418377,1685.8,1685.5,5.93277]
[1744629471506,7.418377,1685.8,1685.2,5.99332876]
[1744629471848,5.93229,1685.7,1685.3,5.93348]
[1744629472048,5.93229,1685.7,1685.4,5.93318]
[1744629472206,3.0,1685.9,1685.3,5.93361]
[1744629472207,8.93162,1685.9,1685.5,5.93275]
[1744629472412,8.93162,1685.9,1685.6,5.9325]
[1744629472637,3.0,1685.9,1685.5,5.93289]
[1744629472837,5.93206,1685.8,1685.5,5.93289]
[1744629473438,5.9319,1685.8,1685.4,5.93327]
[1744629473611,5.93239,1685.7,1685.4,11.86644]
[1744629473810,5.93193,1685.8,1685.5,5.93275]
[1744629474012,7.529777,1685.8,1685.5,5.93275]
[1744629474212,13.461987,1685.8,1685.4,5.93323]
[1744629474413,5.93227,1685.7,1685.4,5.93323]
[1744629474853,7.529777,1685.8,1685.4,5.93321]
[1744629475054,5.93193,1685.8,1685.5,0.8186]
[1744629475659,0.7935,1686.0,1685.6,5.9326]
[1744629475880,8.1605,1686.3,1685.6,5.99185245]
[1744629476051,0.8115,1686.5,1686.3,5.93008]
[1744629476224,7.349,1686.7,1686.4,5.92945]
[1744629476422,6.73991,1686.8,1686.2,0.7631]
[1744629476423,0.8115,1686.8,1686.3,5.92994]
[1744629476624,0.8115,1686.8,1686.2,0.7631]
[1744629476625,5.92962,1686.5,1686.2,0.7631]
[1744629476862,0.592962,1686.4,1686.0,0.7631]
[1744629477031,5.92944,1686.5,1686.1,5.93077]
[1744629477354,5.92911,1686.6,1686.0,0.7631]
[1744629477355,5.92909,1686.6,1686.2,5.93043]
[1744629477560,0.8115,1686.8,1686.2,5.93036]
[1744629477719,5.92884,1686.7,1686.3,5.93003]
[1744629477924,0.592884,1686.6,1686.3,11.86001]
[1744629478123,0.8115,1686.8,1686.5,5.92922]
[1744629478346,12.88839,1687.0,1686.5,5.92922]
[1744629478567,12.88839,1687.0,1686.6,5.92902]
[1744629478763,12.88839,1687.0,1686.6,11.85804]
[1744629479063,6.9606,1687.0,1686.7,5.92864]
[1744629479224,6.9606,1687.0,1686.7,5.92861]
[1744629479426,6.17,1687.0,1686.9,5.92803]
[1744629479753,7.349,1687.1,1686.9,5.92785]
[1744629480369,7.349,1687.1,1687.0,5.92768]
[1744629480587,14.07883,1687.5,1687.2,5.92686]
[1744629480735,3.0,1687.4,1687.2,5.92686]
[1744629480936,9.6481285,1687.9,1687.4,5.92609]
[1744629480937,5.92491,1687.8,1687.4,5.92609]
[1744629481251,3.0,1687.7,1687.4,5.92626]
[1744629481566,5.92663,1687.3,1687.0,5.92755]
[1744629481726,5.9271,1687.2,1686.8,5.92826]
[1744629481927,3.0,1687.2,1686.9,11.85572]
[1744629482161,3.0,1687.2,1686.9,5.92786]
[1744629482333,3.0,1687.2,1686.7,0.8119]
[1744629482334,10.412468,1687.2,1686.7,6.74047]
[1744629482518,5.92739,1687.1,1686.7,12.66906]
[1744629483638,10.412468,1687.2,1686.8,5.92822]
[1744629484035,5.92733,1687.1,1686.7,12.66924]
[1744629484245,5.92781,1687.0,1686.6,5.9289]
[1744629484443,11.85494,1687.1,1686.7,5.92852]
[1744629484629,12.8962128,1687.1,1686.7,5.92852]
[1744629484830,13.27227,1687.4,1687.2,5.92697]
[1744629484831,7.346,1687.4,1687.2,5.92697]
[1744629485160,7.346,1687.4,1686.9,6.71733]
[1744629485161,0.787,1687.6,1687.4,5.92621]
[1744629485340,13.26994,1687.8,1687.4,11.85235]
[1744629485731,7.345,1687.8,1687.5,11.85168]
[1744629485980,7.345,1687.8,1687.5,5.92576]
[1744629486777,0.005,1688.0,1687.9,5.92452]
[1744629487178,0.005,1688.0,1687.9,5.98375841]
[1744629487534,0.005,1688.0,1687.9,5.92452]
[1744629488314,0.4055239,1688.7,1688.1,0.7964]
[1744629488456,0.04290551,1690.2,1688.9,0.55]
[1744629488653,0.04290551,1690.2,1689.8,0.92511939]
[1744629488654,0.83420551,1690.2,1689.8,0.92511939]
[1744629488896,0.04290551,1690.2,1689.9,0.8189]
[1744629489090,0.04290551,1690.2,1690.0,5.91715]
[1744629489292,0.04290551,1690.2,1689.8,0.92511939]
[1744629489494,0.04290551,1690.2,1689.5,0.8189]
[1744629489495,5.91716,1690.0,1689.5,6.7376]
[1744629489696,0.04290551,1690.2,1689.9,5.91748]
[1744629489905,0.04290551,1690.2,1689.5,0.8189]
[1744629490059,5.91758,1689.9,1689.5,0.8189]
[1744629490258,0.63938488,1690.2,1689.5,0.8189]
[1744629490488,0.04290551,1690.2,1689.5,0.8189]
[1744629490697,0.04290551,1690.2,1689.9,5.91745]
[1744629490906,0.04290551,1690.2,1689.5,3.8189]
[1744629491088,0.04290551,1690.2,1689.7,5.91813]
[1744629491386,0.04290551,1690.2,1689.9,5.91732]
[1744629491595,0.04290551,1690.2,1690.0,0.05916495]
[1744629491778,0.04290551,1690.2,1689.5,0.8189]
[1744629491978,5.91789,1689.8,1689.2,5.91961]
[1744629492216,3.0,1690.1,1688.9,8.369]
[1744629492217,0.13970397,1690.1,1688.9,8.369]
[1744629492382,0.12509244,1689.7,1689.6,5.91837]
[1744629492712,3.0,1690.1,1689.4,5.91914]
[1744629492916,5.91788,1689.8,1689.2,12.64225]
[1744629493080,0.12656152,1690.0,1689.0,6.4781285]
[1744629493081,5.91893,1689.5,1689.0,5.92036]
[1744629493275,5.91893,1689.5,1689.0,5.92035]
[1744629493276,0.12391735,1689.4,1689.0,5.92035]
[1744629493480,0.12391735,1689.4,1688.9,5.92083]
[1744629493788,5.91963,1689.3,1688.8,12.64481]
[1744629494108,0.12038461,1689.2,1688.8,12.64483]
[1744629494316,0.12038461,1689.2,1688.8,0.8026]
[1744629494536,5.92047,1689.1,1688.6,5.92177]
[1744629494705,5.92047,1689.1,1688.6,5.92189]
[1744629494706,0.1195026,1689.0,1688.6,5.92189]
[1744629495007,0.1195026,1689.0,1688.7,5.98088459]
[1744629495210,0.1195026,1689.0,1688.9,6.68761]
[1744629495518,8.366,1689.9,1688.9,3.7666]
[1744629495694,5.91786,1689.8,1689.4,5.91921]
[1744629495889,0.3,1690.0,1689.6,5.91831]
[1744629496089,5.95950551,1690.2,1689.8,5.91756]
[1744629496090,0.04290551,1690.2,1689.8,5.91756]
[1744629496294,5.91804,1689.8,1689.4,6.67216]
[1744629496509,0.04290551,1690.2,1689.0,3.4781285]
[1744629496510,5.91883,1689.6,1689.0,3.4781285]
[1744629496694,5.91883,1689.6,1689.1,6.72507]
[1744629496695,5.91879,1689.6,1689.1,6.72507]
[1744629496896,5.91911,1689.5,1689.1,0.8049]
[1744629497131,5.91928,1689.4,1689.1,0.8049]
[1744629497327,14.28328,1689.4,1688.9,5.92095]
[1744629497502,14.28328,1689.4,1688.9,5.92073]
[1744629497503,8.364,1689.4,1688.9,5.92073]
[1744629497826,8.91839,1689.7,1689.1,5.92013]
[1744629498022,17.28239,1689.7,1689.2,5.9197]
[1744629498322,17.28239,1689.7,1689.1,5.92031]
[1744629498323,5.91985,1689.3,1688.8,6.68547]
[1744629498525,5.91927,1689.4,1688.5,4.0281285]
[1744629498526,5.92044,1689.1,1688.7,5.92152]
[1744629498727,14.28396,1689.2,1688.5,6.73266]
[1744629499031,14.28413,1689.2,1688.8,5.92118]
[1744629499190,15.03858,1689.8,1689.4,5.91923]
[1744629499385,0.8152,1690.1,1689.5,0.05918458]
[1744629499588,5.91814,1689.8,1689.3,5.9194]
[1744629499811,11.83744,1689.6,1689.2,5.91996]
[1744629500124,5.91952,1689.4,1688.9,5.92087]
[1744629500293,5.91952,1689.4,1688.9,5.92078]
[1744629500494,5.91926,1689.4,1688.8,0.7849]
[1744629500694,11.84156,1689.0,1688.6,9.4001785]
[1744629500901,18.07777,1689.5,1688.6,9.4001785]
[1744629500902,5.92037,1689.1,1688.7,5.92157]
[1744629501103,8.364,1689.2,1688.6,9.4000985]
[1744629501104,11.84169,1689.0,1688.6,9.4000985]
[1744629501332,8.364,1689.2,1688.2,0.795]
[1744629501516,8.364,1689.2,1688.4,5.92263]
[1744629501722,8.364,1689.2,1688.5,5.98139729]
[1744629501723,5.92129,1688.9,1688.5,5.98139729]
[1744629501896,5.92129,1688.9,1688.2,6.71842]
[1744629501897,5.92221,1688.6,1688.2,6.71842]
[1744629502096,5.92343,1688.3,1687.9,6.7032]
[1744629502297,5.92401,1688.1,1687.7,5.92521]
[1744629502611,8.365,1688.2,1687.9,5.92452]
[1744629502812,8.365,1688.2,1687.7,5.92518]
[1744629502813,5.92386,1688.1,1687.7,5.92518]
[1744629502998,8.365,1688.2,1687.7,0.592518]
[1744629503197,8.365,1688.2,1687.5,6.70449]
[1744629503198,5.92463,1687.9,1687.5,6.70449]
[1744629503448,5.92463,1687.9,1687.5,6.70441]
[1744629503941,14.28856,1688.2,1687.1,0.05]
[1744629503942,5.92643,1687.4,1687.1,0.05]
[1744629504143,5.92669,1687.3,1687.1,0.05]
[1744629504349,8.365,1687.5,1687.2,5.92697]
[1744629504554,8.365,1687.5,1687.1,0.05]
[1744629504721,5.92697,1687.2,1687.1,0.05]
[1744629505351,11.85374,1687.3,1687.1,0.05]
[1744629505503,5.92697,1687.2,1687.1,0.05]
[1744629505860,5.92683,1687.3,1687.1,0.05]
[1744629506305,8.367,1687.7,1687.4,5.92611]
[1744629506511,8.367,1687.7,1687.1,5.97711]
[1744629506706,8.367,1687.7,1687.2,5.92697]
[1744629507033,8.367,1687.7,1687.1,0.05]
[1744629507034,14.29225,1687.7,1687.3,5.92642]
[1744629507278,3.0,1687.6,1687.1,0.05]
[1744629507459,5.92663,1687.3,1687.1,0.05]
[1744629507764,14.29397,1687.2,1687.1,0.05]
[1744629508367,11.85233,1687.5,1687.1,0.05]
[1744629508567,5.92697,1687.2,1687.1,0.05]
[1744629508741,14.29387,1687.3,1687.1,0.05]
[1744629508942,5.92697,1687.2,1687.1,0.05]
[1744629509143,14.29387,1687.3,1687.1,0.05]
[1744629509361,8.367,1687.3,1687.1,0.05]
[1744629509531,8.369,1687.5,1687.1,0.05]
[1744629509744,5.92557,1687.6,1687.1,5.97718]
[1744629509995,5.92523,1687.7,1687.2,6.524638]
[1744629510162,5.92526,1687.7,1687.3,5.92649]
[1744629510360,49.9762,1687.8,1687.1,0.05]
[1744629510566,11.85298,1687.4,1687.1,0.05]
[1744629510748,14.59239,1687.4,1687.1,0.05]
[1744629511156,5.92609,1687.5,1687.1,5.97721]
[1744629511377,3.0,1687.6,1687.2,5.92681]
[1744629511555,5.92581,1687.6,1687.3,5.9265]
[1744629512056,5.92664,1687.3,1687.1,0.647756]
[1744629512254,5.92637,1687.4,1687.1,0.647756]
[1744629512574,5.92663,1687.3,1687.1,0.647756]
[1744629512777,5.92663,1687.3,1687.1,0.05]
[1744629512979,5.92697,1687.2,1687.1,0.05]
[1744629513200,14.59397,1687.2,1687.1,0.05]
[1744629513897,18.14397,1687.2,1687.1,1e-05]
[1744629514078,19.6318938,1687.2,1687.1,1e-05]
[1744629514279,10.4148938,1687.2,1687.1,1e-05]
[1744629514590,19.6318938,1687.2,1687.1,1e-05]
[1744629514818,6.73849,1686.2,1686.1,0.05]
[1744629515015,18.40749,1686.2,1686.1,0.05]
[1744629515170,19.24389,1686.2,1686.1,0.05]
[1744629515510,18.40749,1686.2,1686.1,1e-05]
[1744629517204,17.59949,1686.2,1686.1,1e-05]
[1744629517406,5.92909,1686.6,1686.1,1e-05]
[1744629517614,5.92909,1686.6,1686.2,11.86076]
[1744629517919,5.92909,1686.6,1686.2,11.86056]
[1744629518104,52.13349,1687.1,1686.6,5.9289]
[1744629518308,46.206,1687.1,1686.3,7.116086]
[1744629518622,46.206,1687.1,1686.7,5.92872]
[1744629518623,3.0,1687.0,1686.7,5.92872]
[1744629518783,8.92769,1687.0,1686.7,5.92872]
[1744629518977,46.206,1687.1,1686.6,0.7965]
[1744629519174,52.13335,1687.1,1686.7,5.92846]
[1744629519426,46.206,1687.1,1686.6,1.469085]
[1744629519592,5.92644,1687.4,1687.0,5.92752]
[1744629519924,5.92594,1687.5,1687.2,5.92697]
[1744629520106,14.59666,1687.6,1687.3,0.592697]
[1744629520309,8.671,1687.6,1687.1,5.92729]
[1744629520912,5.9268,1687.3,1686.8,6.520877]
[1744629521120,5.9268,1687.3,1686.9,5.92788]
[1744629521424,5.92784,1687.0,1686.6,6.72556]
[1744629521589,5.92784,1687.0,1686.7,5.92866]
[1744629521793,5.92735,1687.1,1686.7,5.92866]
[1744629521995,5.92735,1687.1,1686.7,5.92858]
[1744629522223,8.671,1687.6,1686.6,1.469056]
[1744629522224,8.671,1687.6,1687.0,5.92733]
[1744629522531,11.85161,1687.6,1687.2,5.92681]
[1744629522697,5.92593,1687.5,1687.1,6.519903]
[1744629523079,3.0,1687.6,1687.1,0.592733]
[1744629523280,8.671,1687.7,1687.4,5.92614]
[1744629523678,14.59627,1687.7,1687.2,6.74436]
[1744629523878,14.59627,1687.7,1687.0,5.92763]
[1744629523879,5.92659,1687.4,1687.0,5.92763]
[1744629524123,5.92597,1687.5,1687.1,6.520013]
[1744629524425,5.92597,1687.5,1687.1,6.519973]
[1744629524426,11.85221,1687.5,1687.1,6.519973]
[1744629524717,5.9263,1687.4,1687.1,6.519973]
[1744629524922,5.9263,1687.4,1687.1,0.592763]
[1744629525084,5.9263,1687.4,1687.0,5.92755]
[1744629525283,5.9263,1687.4,1687.1,5.92717]
[1744629525721,5.92595,1687.5,1686.8,5.9282]
[1744629525722,9.70312,1687.5,1686.8,5.9282]
[1744629525947,5.92662,1687.3,1686.6,12.761636]
[1744629526233,13.1812685,1687.5,1686.7,7.2047836]
[1744629526387,5.92765,1687.1,1686.7,7.2047836]
[1744629526722,5.92878,1686.7,1686.3,5.93002]
[1744629526921,5.92873,1686.7,1686.1,5.93081]
[1744629527094,5.93047,1686.3,1686.2,0.12]
[1744629527302,8.92992,1686.4,1686.1,1e-05]
[1744629527634,5.93022,1686.3,1686.1,1e-05]
[1744629527789,5.93049,1686.2,1686.1,1e-05]
[1744629530509,5.93022,1686.3,1686.1,1e-05]
[1744629530695,5.93042,1686.3,1686.1,1e-05]
[1744629530897,5.93049,1686.2,1686.1,1e-05]
[1744629531544,14.9640095,1686.2,1686.1,1e-05]
[1744629531998,14.4140095,1686.2,1686.1,1e-05]
[1744629532223,18.42179,1686.2,1686.1,1e-05]
[1744629533523,18.97179,1686.2,1686.1,1e-05]
[1744629534326,18.42179,1686.2,1686.1,1e-05]
[1744629535846,11.672,1686.2,1686.1,1e-05]
[1744629536277,11.672,1686.2,1684.3,0.92645769]
[1744629536278,0.55,1685.6,1684.3,0.92645769]
[1744629536424,0.74999,1685.8,1684.3,7.69e-06]
[1744629536425,5.93683,1684.4,1684.3,7.69e-06]
[1744629536629,6.75611,1684.5,1684.3,7.69e-06]
[1744629536955,3.0,1684.6,1684.3,7.69e-06]
[1744629537125,3.0,1684.7,1684.3,7.69e-06]
[1744629537351,3.0,1684.9,1684.3,7.69e-06]
[1744629537597,5.93389,1685.3,1684.4,0.7686]
[1744629537598,3.0,1684.6,1684.4,0.7686]
[1744629537892,5.93642,1684.6,1684.4,0.7686]
[1744629538093,8.93647,1684.5,1684.4,0.7686]
[1744629538451,8.93683,1684.4,1684.3,7.69e-06]
[1744629538653,3.0,1684.7,1684.3,7.69e-06]
[1744629538888,8.93683,1684.4,1684.3,7.69e-06]
[1744629539074,3.0,1684.4,1684.3,7.69e-06]
[1744629539278,8.93683,1684.4,1684.3,7.69e-06]
[1744629539456,3.0,1684.4,1684.3,7.69e-06]
[1744629539969,8.93586,1684.7,1684.3,7.69e-06]
[1744629540164,8.93683,1684.4,1684.3,7.69e-06]
[1744629540381,9.830513,1684.4,1684.3,7.69e-06]
[1744629540903,9.830513,1684.4,1684.1,7.69e-06]
[1744629540904,8.93753,1684.2,1684.1,7.69e-06]
[1744629541051,12.9656585,1684.2,1684.1,7.69e-06]
[1744629541393,14.30143701,1684.2,1684.1,7.69e-06]
[1744629542270,12.4156585,1684.2,1684.1,7.69e-06]
[1744629544601,8.93753,1684.2,1684.1,7.69e-06]
[1744629545626,21.8976585,1684.2,1684.1,7.69e-06]
[1744629546331,18.41953,1684.2,1684.1,7.69e-06]
[1744629546620,21.8976585,1684.2,1684.1,7.69e-06]
[1744629546805,6.48894,1683.8,1683.7,0.4055239]
[1744629546991,13.7939685,1683.8,1683.7,3.9e-06]
[1744629547682,22.7259685,1683.8,1683.7,3.9e-06]
[1744629548509,13.7939685,1683.8,1683.7,3.9e-06]
[1744629548829,22.1779685,1683.8,1683.7,3.9e-06]
[1744629549125,5.93894,1683.8,1683.7,3.9e-06]
[1744629549636,5.94106,1683.2,1683.1,3.9e-06]
[1744629549802,3.0,1683.5,1683.1,0.7901039]
[1744629549982,5.93934,1683.7,1683.1,0.7901039]
[1744629549983,3.0,1683.7,1683.1,0.7901039]
[1744629550186,5.94003,1683.5,1683.1,6.7313539]
[1744629550394,5.94003,1683.5,1683.1,12.32713051]
[1744629550596,5.93888,1683.9,1683.4,5.94012]
[1744629550824,5.93888,1683.9,1683.5,5.93983]
[1744629550825,5.93866,1683.9,1683.5,5.93983]
[1744629551124,5.93864,1683.9,1683.5,5.9398]
[1744629551324,5.93964,1683.7,1683.3,5.94059]
[1744629551494,5.94002,1683.5,1683.2,5.94093]
[1744629551699,5.94002,1683.5,1683.1,20.81765]
[1744629551996,3.0,1683.7,1683.2,0.05940309]
[1744629552328,5.93865,1683.9,1683.5,11.87958]
[1744629552486,5.93826,1684.0,1683.3,5.94071]